bitfinex/quotes_SOLUSD_20251013
["timestamp","ask_amount","ask_price","bid_price","bid_amount"]
[1760338044145,0.71,196.68,196.63,20.50335953]
[1760338044531,0.71,196.67,196.63,20.50335953]
[1760338044928,5.18940346,196.72,196.66,9.62688432]
[1760338045132,0.71,196.71,196.66,14.71163676]
[1760338045435,0.71,196.7,196.66,14.71163676]
[1760338045629,0.71,196.69,196.66,14.71163676]
[1760338046044,0.71,196.68,196.66,14.71163676]
[1760338047152,0.71,196.7,196.67,9.62688432]
[1760338047350,0.71,196.69,196.67,9.62688432]
[1760338047556,0.71,196.69,196.66,14.71163676]
[1760338047753,0.71,196.68,196.66,14.71163676]
[1760338049643,0.1059985,196.72,196.67,9.70688432]
[1760338049842,0.1059985,196.72,196.71,9.62688432]
[1760338050045,0.1059985,196.72,196.7,9.62688432]
[1760338050349,0.8159985,196.72,196.7,9.62688432]
[1760338051253,0.10238083,196.71,196.7,9.62688432]
[1760338051459,0.81238083,196.71,196.67,10.87647521]
[1760338051755,0.71,196.7,196.67,9.62688432]
[1760338051959,0.71,196.69,196.67,9.62688432]
[1760338052957,0.10238083,196.71,196.68,14.71128537]
[1760338053159,0.10238083,196.71,196.7,9.62688432]
[1760338053650,0.81238083,196.71,196.68,14.71128537]
[1760338053839,0.10238083,196.71,196.7,9.62688432]
[1760338055038,0.10238083,196.71,196.69,9.62688432]
[1760338055952,0.10238083,196.71,196.67,10.87647521]
[1760338056159,0.10238083,196.71,196.69,9.62688432]
[1760338056453,0.10238083,196.71,196.66,5.08491813]
[1760338056454,0.71,196.7,196.66,5.08491813]
[1760338056657,0.10238083,196.71,196.66,5.08491813]
[1760338056658,0.71,196.69,196.66,5.08491813]
[1760338056839,0.71,196.69,196.66,14.71180245]
[1760338057040,0.71,196.68,196.66,14.71180245]
[1760338057637,0.71,196.67,196.6,0.08]
[1760338057859,0.71,196.67,196.64,9.62688432]
[1760338058059,0.71,196.67,196.65,9.62688432]
[1760338058264,0.10238083,196.71,196.67,10.87647521]
[1760338058467,0.10238083,196.71,196.7,9.62688432]
[1760338058654,0.81238083,196.71,196.7,9.62688432]
[1760338058953,0.81238083,196.71,196.69,9.62688432]
[1760338060639,0.81238083,196.71,196.68,14.71121027]
[1760338061566,0.71,196.7,196.67,20.50335953]
[1760338061760,0.71,196.69,196.64,14.71214059]
[1760338061958,0.71,196.68,196.64,9.62688432]
[1760338062262,0.71,196.67,196.64,20.50335953]
[1760338062455,0.71,196.66,196.64,20.50335953]
[1760338062852,9.62688432,196.68,196.59,12.79633588]
[1760338063045,0.71,196.65,196.61,9.62688432]
[1760338063251,0.71,196.64,196.61,9.62688432]
[1760338063439,0.71,196.63,196.6,14.7133543]
[1760338063947,0.71,196.63,196.6,9.62688432]
[1760338064354,0.71,196.63,196.6,10.87647521]
[1760338064640,0.71,196.62,196.6,10.87647521]
[1760338064953,0.71,196.64,196.6,10.87647521]
[1760338065158,0.71,196.63,196.6,10.87647521]
[1760338065864,0.71,196.62,196.57,5.08703214]
[1760338066167,0.71,196.61,196.56,20.50335953]
[1760338066343,0.7,196.6,196.56,20.50335953]
[1760338066550,0.7,196.6,196.55,5.08776392]
[1760338066551,0.7,196.66,196.6,10.87647521]
[1760338066851,5.78492651,196.66,196.61,9.62688432]
[1760338067148,0.7,196.65,196.61,9.62688432]
[1760338068769,14.71181083,196.66,196.6,25.58963309]
[1760338068959,10.32688432,196.64,196.58,5.08674839]
[1760338069153,10.32688432,196.64,196.58,14.71363271]
[1760338069473,10.32688432,196.63,196.58,5.08674839]
[1760338069774,0.7,196.62,196.58,5.08674839]
[1760338069964,0.7,196.61,196.58,5.08674839]
[1760338070345,0.7,196.61,196.56,25.59061236]
[1760338070546,5.08570813,196.63,196.54,12.7197267]
[1760338070547,10.32688432,196.6,196.54,9.62688432]
[1760338070756,10.32688432,196.59,196.54,10.87647521]
[1760338070966,10.32688432,196.58,196.53,10.87647521]
[1760338071270,0.1087189,196.55,196.53,20.50335953]
[1760338072070,0.1087189,196.55,196.53,25.59150948]
[1760338072763,0.1087189,196.55,196.51,0.08]
[1760338072975,0.1087189,196.55,196.53,9.62688432]
[1760338074366,0.8087189,196.55,196.51,5.08872065]
[1760338074571,0.1087189,196.55,196.5,5.08904714]
[1760338074872,0.8087189,196.55,196.5,14.71593146]
[1760338075070,0.7,196.54,196.5,14.71593146]
[1760338075272,0.1087189,196.55,196.5,14.71593146]
[1760338075459,0.8087189,196.55,196.5,14.71593146]
[1760338076560,0.8087189,196.55,196.51,9.62688432]
[1760338076770,0.1087189,196.55,196.54,9.62688432]
[1760338077069,0.1087189,196.55,196.51,10.87647521]
[1760338077256,0.1087189,196.55,196.5,5.08904714]
[1760338077257,0.7,196.54,196.5,5.08904714]
[1760338077447,0.7,196.54,196.5,14.71593146]
[1760338078272,0.1087189,196.55,196.5,14.71593146]
[1760338078460,0.8087189,196.55,196.51,9.62688432]
[1760338078770,0.1087189,196.55,196.51,9.62688432]
[1760338078979,0.1087189,196.55,196.52,9.62688432]
[1760338079353,0.1087189,196.55,196.51,9.62688432]
[1760338079681,0.1087189,196.55,196.54,9.62688432]
[1760338079870,0.1087189,196.55,196.52,10.87647521]
[1760338080092,0.1087189,196.55,196.53,9.62688432]
[1760338080254,0.8087189,196.55,196.52,9.62688432]
[1760338080455,0.7,196.54,196.51,15.96520217]
[1760338080677,0.7,196.54,196.52,9.62688432]
[1760338080978,0.1087189,196.55,196.52,9.62688432]
[1760338081272,0.1087189,196.55,196.52,14.71541837]
[1760338081782,0.1087189,196.55,196.53,9.62688432]
[1760338082077,0.1087189,196.55,196.54,9.62688432]
[1760338082453,0.1087189,196.55,196.54,20.50335953]
[1760338082674,0.1087189,196.55,196.54,20.58335953]
[1760338082969,0.0287189,196.55,196.54,20.58335953]
[1760338083475,0.0287189,196.55,196.54,25.67138232]
[1760338084760,0.10776561,196.58,196.55,10.87647521]
[1760338085089,0.10776561,196.58,196.57,41.30335953]
[1760338086077,0.10776561,196.58,196.57,46.3906058]
[1760338086978,0.10776561,196.58,196.57,36.76372148]
[1760338087358,0.10776561,196.58,196.57,25.5906058]
[1760338088675,0.10776561,196.58,196.57,46.3906058]
[1760338089059,0.10776561,196.58,196.57,10.87647521]
[1760338089265,0.80776561,196.58,196.57,20.50335953]
[1760338089760,0.10776561,196.58,196.57,20.50335953]
[1760338090282,0.10776561,196.58,196.57,100.66913595]
[1760338090477,0.10776561,196.58,196.57,105.75638222]
[1760338091262,0.2056191,196.58,196.57,105.75638222]
[1760338091984,0.09785349,196.58,196.57,105.75638222]
[1760338093164,0.09785349,196.58,196.57,96.1294979]
[1760338093368,0.79785349,196.58,196.56,9.62688432]
[1760338093871,0.7,196.57,196.54,10.87647521]
[1760338094081,0.7,196.56,196.54,10.87647521]
[1760338094280,0.7,196.55,196.54,10.87647521]
[1760338094486,0.09785349,196.58,196.54,20.50335953]
[1760338094680,0.79785349,196.58,196.55,9.62688432]
[1760338094885,0.7,196.57,196.55,9.62688432]
[1760338095384,0.7,196.56,196.55,9.62688432]
[1760338096163,0.7,196.56,196.54,25.59136912]
[1760338096394,0.7,196.56,196.54,20.50335953]
[1760338096568,0.68,196.55,196.54,20.50335953]
[1760338096893,0.68,196.55,196.54,25.59138232]
[1760338097081,0.68,196.57,196.54,25.59138232]
[1760338097279,0.68,196.56,196.54,20.50335953]
[1760338097486,0.68,196.55,196.52,9.62688432]
[1760338097684,0.68,196.54,196.5,20.50335953]
[1760338097881,0.68,196.53,196.5,25.59241193]
[1760338098194,0.68,196.52,196.5,25.59241193]
[1760338098395,0.68,196.54,196.5,25.59241193]
[1760338098588,0.68,196.53,196.52,9.62688432]
[1760338099093,0.68,196.53,196.51,9.62688432]
[1760338099294,0.68,196.52,196.5,15.96552761]
[1760338099477,0.68,196.52,196.51,9.62688432]
[1760338099685,0.68,196.54,196.51,9.62688432]
[1760338099995,0.68,196.53,196.51,9.62688432]
[1760338100204,0.68,196.52,196.5,20.50335953]
[1760338101998,0.68,196.52,196.51,9.62688432]
[1760338102503,0.68,196.52,196.47,85.25536209]
[1760338102802,0.68,196.51,196.47,14.71646999]
[1760338102988,0.68,196.5,196.47,14.71646999]
[1760338103192,0.68,196.49,196.47,14.71646999]
[1760338107789,0.68,196.49,196.48,9.62688432]
[1760338108907,0.68,196.51,196.48,9.62688432]
[1760338109103,0.68,196.54,196.5,9.62688432]
[1760338109289,0.68,196.55,196.52,9.62688432]
[1760338109607,0.68,196.54,196.52,9.62688432]
[1760338109782,5.08758872,196.56,196.52,9.62688432]
[1760338109987,0.68,196.55,196.52,9.62688432]
[1760338110404,0.68,196.54,196.52,9.62688432]
[1760338110904,0.68,196.53,196.5,14.7157924]
[1760338111087,0.68,196.52,196.5,14.7157924]
[1760338111291,0.68,196.51,196.48,14.71628187]
[1760338111587,0.77823967,196.53,196.49,9.62688432]
[1760338111802,0.68,196.52,196.49,9.62688432]
[1760338111988,0.68,196.51,196.48,14.71628187]
[1760338112389,5.18654784,196.53,196.48,14.71628187]
[1760338112595,0.68,196.5,196.48,14.71628187]
[1760338112901,0.77823967,196.53,196.49,9.62688432]
[1760338113105,0.68,196.52,196.49,9.62688432]
[1760338113404,0.68,196.51,196.49,9.62688432]
[1760338113605,0.68,196.5,196.49,9.62688432]
[1760338114281,0.68,196.5,196.48,14.71628187]
[1760338114480,0.09823967,196.53,196.49,9.62688432]
[1760338114685,0.68,196.5,196.48,14.71628187]
[1760338115095,0.09823967,196.53,196.49,9.62688432]
[1760338115281,0.09823967,196.53,196.5,9.62688432]
[1760338115501,0.77823967,196.53,196.5,9.62688432]
[1760338115808,0.68,196.52,196.5,9.62688432]
[1760338116006,0.68,196.52,196.51,9.62688432]
[1760338116690,0.68,196.52,196.5,5.08904205]
[1760338116907,0.68,196.52,196.51,9.62688432]
[1760338117205,0.09823967,196.53,196.51,9.62688432]
[1760338117499,0.09823967,196.53,196.52,9.62688432]
[1760338117907,0.09823967,196.53,196.52,20.50335953]
[1760338118094,0.09823967,196.53,196.52,25.59190013]
[1760338119106,0.09823967,196.53,196.52,15.96501581]
[1760338119415,0.09823967,196.53,196.52,25.59190013]
[1760338125596,0.09823967,196.53,196.52,15.96501581]
[1760338125920,0.77823967,196.53,196.52,25.59190013]
[1760338126214,0.09823967,196.53,196.52,25.59190013]
[1760338126618,0.77823967,196.53,196.46,0.2]
[1760338126799,0.77823967,196.53,196.47,9.62688432]
[1760338126992,0.69,196.52,196.47,9.62688432]
[1760338127187,0.09823967,196.53,196.5,9.62688432]
[1760338127412,0.09823967,196.53,196.51,9.62688432]
[1760338127609,0.69,196.52,196.49,14.71610549]
[1760338127808,0.69,196.51,196.48,9.62688432]
[1760338128003,0.69,196.5,196.47,14.71671991]
[1760338128402,0.69,196.5,196.48,9.62688432]
[1760338128795,0.69,196.49,196.47,9.62688432]
[1760338129007,0.69,196.48,196.47,10.87647521]
[1760338129304,14.81343147,196.53,196.47,9.62688432]
[1760338129305,0.69,196.5,196.47,9.62688432]
[1760338129520,0.69,196.5,196.47,10.87647521]
[1760338129727,0.69,196.5,196.47,20.50335953]
[1760338130620,0.69,196.5,196.47,10.87647521]
[1760338130824,0.69,196.49,196.47,10.87647521]
[1760338131321,0.09409156,196.48,196.47,10.87647521]
[1760338131515,0.09409156,196.48,196.47,15.9663108]
[1760338131926,0.09409156,196.48,196.47,10.87647521]
[1760338132122,0.78409156,196.48,196.46,0.2]
[1760338132837,0.69,196.47,196.46,0.2]
[1760338134930,0.69,196.47,196.45,0.2]
[1760338134931,10.31688432,196.47,196.45,0.2]
[1760338135230,9.62688432,196.46,196.45,0.2]
[1760338135932,0.69,196.46,196.45,0.2]
[1760338136318,10.31688432,196.46,196.45,0.2]
[1760338136519,0.69,196.46,196.45,0.2]
[1760338136727,15.40697899,196.46,196.45,0.2]
[1760338139617,30.72286922,196.46,196.45,0.2]
[1760338139810,30.72286922,196.46,196.45,1e-08]
[1760338141037,21.0959849,196.46,196.45,1e-08]
[1760338141224,5.78009467,196.46,196.45,1e-08]
[1760338141544,26.58009467,196.46,196.45,1e-08]
[1760338142509,5.18388401,196.48,196.45,1e-08]
[1760338143023,30.42688432,196.46,196.45,1e-08]
[1760338143514,31.11688432,196.46,196.45,1e-08]
[1760338143721,10.31688432,196.46,196.45,1e-08]
[1760338144112,41.99335953,196.46,196.45,1e-08]
[1760338144313,15.40697899,196.46,196.45,1e-08]
[1760338144537,36.20697899,196.46,196.45,1e-08]
[1760338144713,5.78009467,196.46,196.45,1e-08]
[1760338144912,26.58009467,196.46,196.45,1e-08]
[1760338145130,5.09009467,196.46,196.45,1e-08]
[1760338145332,15.5007116,196.48,196.45,1e-08]
[1760338145932,0.69,196.47,196.45,1e-08]
[1760338146313,5.7798742,196.47,196.45,1e-08]
[1760338147037,15.40675852,196.47,196.45,1e-08]
[1760338148036,5.18367483,196.48,196.45,1e-08]
[1760338148229,0.09409156,196.48,196.45,1e-08]
[1760338149538,0.09409156,196.48,196.45,0.69000001]
[1760338150030,0.09409156,196.48,196.46,0.69]
[1760338150642,0.09409156,196.48,196.47,11.56647521]
[1760338150831,0.10755088,196.51,196.48,20.50335953]
[1760338151024,0.10755088,196.51,196.5,10.87647521]
[1760338151338,0.11129408,196.5,196.49,16.57579273]
[1760338151525,0.11129408,196.5,196.49,26.20267705]
[1760338152838,0.10627337,196.51,196.49,240.70267705]
[1760338153041,0.10627337,196.51,196.5,10.23688432]
[1760338153427,0.09159538,196.53,196.52,31.67647521]
[1760338153627,0.09901943,196.54,196.53,10.87647521]
[1760338153938,0.09901943,196.54,196.53,21.11335953]
[1760338154742,0.09901943,196.54,196.53,26.20164121]
[1760338155044,0.09901943,196.54,196.53,240.70164121]
[1760338156031,0.09901943,196.54,196.53,26.20164121]
[1760338156741,0.09901943,196.54,196.53,36.76475689]
[1760338156936,0.09901943,196.54,196.53,48.43136482]
[1760338157236,0.09901943,196.54,196.53,49.04136482]
[1760338157747,0.09901943,196.54,196.53,46.39164121]
[1760338157928,0.09901943,196.54,196.53,181.10164121]
[1760338158246,0.09901943,196.54,196.53,160.30164121]
[1760338159239,0.09901943,196.54,196.53,150.67475689]
[1760338159440,0.09901943,196.54,196.53,181.10164121]
[1760338159634,1e-08,196.55,196.53,160.30164121]
[1760338159834,0.68,196.66,196.56,31.67647521]
[1760338160152,2.65810903,196.65,196.57,20.50335953]
[1760338160345,2.65810903,196.65,196.57,21.11335953]
[1760338160643,3.33810903,196.65,196.57,23.77146856]
[1760338160848,3.33810903,196.65,196.57,44.57146856]
[1760338161044,3.33810903,196.65,196.57,41.91335953]
[1760338161246,3.33810903,196.65,196.57,47.0006058]
[1760338161548,0.68,196.63,196.57,46.3906058]
[1760338162045,0.68,196.6,196.57,46.3906058]
[1760338162234,0.68,196.63,196.57,46.3906058]
[1760338162743,0.77931773,196.58,196.57,10.87647521]
[1760338162934,0.09931773,196.58,196.57,41.30335953]
[1760338163451,0.09931773,196.58,196.57,46.3906058]
[1760338164134,0.77931773,196.58,196.57,10.87647521]
[1760338164338,0.77931773,196.58,196.57,20.50335953]
[1760338164732,0.77931773,196.58,196.57,25.5906058]
[1760338164948,0.09931773,196.58,196.57,25.5906058]
[1760338167234,0.09931773,196.58,196.57,15.96372148]
[1760338167444,0.09931773,196.58,196.57,25.5906058]
[1760338169558,0.77931773,196.58,196.55,5.08772828]
[1760338169739,0.68,196.57,196.5,10.87647521]
[1760338170055,10.30688432,196.56,196.52,10.87647521]
[1760338170354,5.18649411,196.58,196.5,9.62688432]
[1760338170355,0.68,196.55,196.5,14.71594284]
[1760338170557,0.09931773,196.58,196.5,14.71594284]
[1760338170558,0.09931773,196.58,196.55,10.87647521]
[1760338170852,0.09931773,196.58,196.57,9.62688432]
[1760338171060,0.68,196.57,196.55,9.62688432]
[1760338171238,0.68,196.57,196.55,20.50335953]
[1760338171754,0.68,196.56,196.55,10.87647521]
[1760338172057,0.68,196.56,196.53,5.08826401]
[1760338172248,0.68,196.56,196.54,9.62688432]
[1760338172668,0.77604569,196.58,196.54,9.62688432]
[1760338172856,0.68,196.57,196.54,14.71484061]
[1760338174436,0.68,196.56,196.54,9.62688432]
[1760338174637,0.68,196.56,196.54,10.87647521]
[1760338175357,0.09604569,196.58,196.56,10.87647521]
[1760338175656,0.09604569,196.58,196.57,20.50335953]
[1760338176945,0.09604569,196.58,196.57,21.11335953]
[1760338177347,0.09604569,196.58,196.57,26.2006058]
[1760338179769,0.09604569,196.58,196.57,16.57372148]
[1760338179972,0.09604569,196.58,196.57,26.2006058]
[1760338182071,0.10968958,196.6,196.58,10.87647521]
[1760338182365,0.10968958,196.6,196.59,20.50335953]
[1760338182568,0.10968958,196.6,196.59,21.11335953]
[1760338182868,0.10968958,196.6,196.59,235.61335953]
[1760338183370,0.10968958,196.6,196.59,240.70008825]
[1760338183668,1e-08,196.6,196.59,240.70008825]
[1760338186356,0.09386788,196.65,196.62,31.67647521]
[1760338186547,0.09386788,196.65,196.62,41.30335953]
[1760338186752,0.09386788,196.65,196.62,41.91335953]
[1760338186953,0.09386788,196.65,196.62,256.41335953]
[1760338187175,1e-08,196.65,196.64,20.50335953]
[1760338187378,0.10249203,196.67,196.65,31.67647521]
[1760338187680,0.10249203,196.67,196.65,41.30335953]
[1760338187974,0.78036926,196.66,196.65,20.50335953]
[1760338188170,0.78036926,196.66,196.56,9.62688432]
[1760338188372,0.68,196.65,196.61,9.62688432]
[1760338188673,0.68,196.64,196.61,20.8]
[1760338188880,0.10036926,196.66,196.61,20.8]
[1760338188881,0.10036926,196.66,196.63,9.62688432]
[1760338189253,0.10036926,196.66,196.61,30.42688432]
[1760338189476,0.68,196.65,196.61,30.42688432]
[1760338189658,0.68,196.64,196.61,30.42688432]
[1760338189858,0.68,196.63,196.61,30.42688432]
[1760338190059,0.68,196.62,196.61,41.30335953]
[1760338190262,0.68,196.62,196.61,46.38957081]
[1760338190588,0.78036926,196.66,196.62,10.87647521]
[1760338190873,0.10036926,196.66,196.65,9.62688432]
[1760338191176,0.10036926,196.66,196.64,10.87647521]
[1760338191376,0.68,196.65,196.63,9.62688432]
[1760338191559,0.68,196.64,196.63,9.62688432]
[1760338191968,0.68,196.64,196.62,10.87647521]
[1760338192160,0.10321315,196.66,196.63,9.62688432]
[1760338192770,0.68,196.65,196.63,9.62688432]
[1760338192967,0.68,196.64,196.63,9.62688432]
[1760338193858,5.76543531,196.64,196.6,10.87647521]
[1760338194058,10.30688432,196.63,196.57,9.62688432]
[1760338194259,0.68,196.62,196.57,9.62688432]
[1760338194467,0.68,196.61,196.57,9.62688432]
[1760338194661,0.68,196.6,196.57,9.62688432]
[1760338194884,0.68,196.59,196.57,9.62688432]
[1760338195188,0.68,196.58,196.57,9.62688432]
[1760338195478,0.68,196.6,196.57,14.7141222]
[1760338195683,5.08543531,196.64,196.58,9.62688432]
[1760338195980,0.68,196.63,196.58,9.62688432]
[1760338196277,0.68,196.62,196.58,9.62688432]
[1760338196662,0.68,196.61,196.58,9.62688432]
[1760338196864,0.68,196.6,196.57,9.62688432]
[1760338197064,0.68,196.59,196.57,9.62688432]
[1760338197382,0.68,196.58,196.57,9.62688432]
[1760338197694,0.68,196.61,196.57,20.50335953]
[1760338197983,0.68,196.6,196.59,9.62688432]
[1760338198766,0.68,196.62,196.59,9.62688432]
[1760338199089,0.68,196.61,196.59,9.62688432]
[1760338199282,0.68,196.64,196.6,9.62688432]
[1760338199483,0.68,196.63,196.6,9.62688432]
[1760338199784,0.68,196.65,196.62,9.62688432]
[1760338199975,0.10321315,196.66,196.64,9.62688432]
[1760338200165,0.68,196.65,196.62,9.62688432]
[1760338200368,0.68,196.64,196.62,9.62688432]
[1760338200567,0.68,196.63,196.62,9.62688432]
[1760338200887,0.10321315,196.66,196.62,14.71283691]
[1760338201088,0.68,196.65,196.62,14.71283691]
[1760338201293,0.68,196.64,196.62,14.71283691]
[1760338201973,0.68,196.63,196.62,14.71283691]
[1760338202179,0.68,196.63,196.62,5.08595259]
[1760338202484,0.10321315,196.66,196.63,10.87647521]
[1760338202680,0.10321315,196.66,196.65,9.62688432]
[1760338202987,0.10321315,196.66,196.65,14.71206102]
[1760338203185,0.10321315,196.66,196.65,25.58853623]
[1760338205500,0.10321315,196.66,196.65,26.19853623]
[1760338205787,0.10378467,196.71,196.68,10.87647521]
[1760338205980,0.10378467,196.71,196.69,9.62688432]
[1760338206186,0.77580159,196.7,196.69,9.62688432]
[1760338206383,0.77580159,196.7,196.68,10.87647521]
[1760338206588,0.68,196.69,196.65,38.59811847]
[1760338206777,0.68,196.68,196.66,10.87647521]
[1760338206980,0.68,196.68,196.66,20.50335953]
[1760338207184,0.68,196.67,196.66,10.87647521]
[1760338207390,5.76466694,196.67,196.56,0.61]
[1760338207601,9.62688432,196.66,196.6,9.62688432]
[1760338207799,0.68,196.65,196.6,9.62688432]
[1760338207996,0.68,196.64,196.6,10.87647521]
[1760338208199,0.68,196.63,196.6,20.50335953]
[1760338208396,0.68,196.63,196.61,9.62688432]
[1760338208903,0.09580159,196.7,196.62,20.50335953]
[1760338209094,0.77580159,196.7,196.66,9.62688432]
[1760338209296,0.68,196.69,196.66,9.62688432]
[1760338209598,0.68,196.69,196.67,5.08465958]
[1760338209790,0.09580159,196.7,196.68,20.50335953]
[1760338209973,0.09580159,196.7,196.69,9.62688432]
[1760338210375,0.09580159,196.7,196.69,20.50335953]
[1760338210901,0.09580159,196.7,196.69,21.11335953]
[1760338211096,0.09580159,196.7,196.69,10.87647521]
[1760338211275,0.09580159,196.7,196.69,20.50335953]
[1760338211473,0.8758332,196.7,196.64,12.71311854]
[1760338211703,0.68,196.69,196.65,20.50335953]
[1760338211875,0.10003161,196.7,196.65,20.50335953]
[1760338212086,0.10003161,196.7,196.65,5.0851767]
[1760338212087,0.68,196.68,196.65,5.0851767]
[1760338212393,0.68,196.67,196.65,5.0851767]
[1760338213414,0.68,196.66,196.55,26.04869809]
[1760338213592,0.68,196.66,196.62,10.87647521]
[1760338214092,0.68,196.65,196.62,10.87647521]
[1760338214394,0.68,196.64,196.6,10.87647521]
[1760338214598,0.68,196.63,196.6,10.87647521]
[1760338215204,0.68,196.63,196.61,5.08621128]
[1760338215499,0.68,196.66,196.61,5.08621128]
[1760338215797,0.68,196.66,196.63,9.62688432]
[1760338216001,0.68,196.66,196.62,20.50335953]
[1760338216190,0.68,196.65,196.59,5.08672872]
[1760338216389,0.68,196.65,196.6,20.50335953]
[1760338216586,0.69,196.64,196.6,20.50335953]
[1760338216901,9.62688432,196.66,196.6,20.50335953]
[1760338217107,0.10003161,196.7,196.62,10.87647521]
[1760338217282,0.79003161,196.7,196.64,9.62688432]
[1760338217487,0.10003161,196.7,196.64,9.62688432]
[1760338217688,12.97476584,196.69,196.62,10.87647521]
[1760338217901,0.69,196.68,196.63,9.62688432]
[1760338218197,2.65788152,196.69,196.68,10.87647521]
[1760338218397,0.10003161,196.7,196.68,21.11335953]
[1760338218628,0.10003161,196.7,196.65,20.8]
[1760338218629,0.10497404,196.73,196.7,31.67647521]
[1760338218794,0.10497404,196.73,196.71,20.50335953]
[1760338219110,0.10497404,196.73,196.71,26.10698517]
[1760338219697,1e-08,196.75,196.74,10.87647521]
[1760338219879,1e-08,196.75,196.74,20.50335953]
[1760338220085,1e-08,196.75,196.74,21.02335953]
[1760338220279,1e-08,196.75,196.74,10.87647521]
[1760338221213,1e-08,196.75,196.74,15.95932567]
[1760338221505,1e-08,196.75,196.74,26.10620999]
[1760338224006,1e-08,196.75,196.74,25.58620999]
[1760338224904,0.69000001,196.75,196.73,9.62688432]
[1760338225090,0.69,196.74,196.72,10.87647521]
[1760338225789,0.69,196.73,196.72,10.87647521]
[1760338225990,0.69,196.73,196.65,0.52]
[1760338225991,0.69,196.73,196.69,10.87647521]
[1760338226198,0.69,196.72,196.69,20.50335953]
[1760338226390,0.69,196.71,196.69,10.87647521]
[1760338226708,1e-08,196.75,196.71,10.87647521]
[1760338226887,0.69,196.74,196.7,9.62688432]
[1760338227205,0.69,196.74,196.64,12.71314293]
[1760338227206,0.69,196.73,196.64,12.71314293]
[1760338227398,0.69,196.72,196.68,9.62688432]
[1760338227605,0.69,196.71,196.68,9.62688432]
[1760338227803,0.69,196.7,196.6,13.2356281]
[1760338227994,0.69,196.69,196.64,9.62688432]
[1760338228199,0.69,196.68,196.64,9.62688432]
[1760338228400,0.69,196.67,196.64,9.62688432]
[1760338228706,0.69,196.67,196.65,9.62688432]
[1760338229808,0.69,196.71,196.66,9.62688432]
[1760338230010,9.62688432,196.74,196.68,9.62688432]
[1760338230313,0.69,196.73,196.68,9.62688432]
[1760338230516,0.69,196.72,196.68,9.62688432]
[1760338230693,5.77285046,196.74,196.68,9.62688432]
[1760338230899,0.69,196.72,196.68,9.62688432]
[1760338231094,0.69,196.72,196.69,9.62688432]
[1760338231411,0.10723494,196.69,196.68,9.62688432]
[1760338231610,0.10723494,196.69,196.68,20.50335953]
[1760338231994,0.10723494,196.69,196.68,10.87647521]
[1760338232191,0.10723494,196.69,196.68,20.50335953]
[1760338233020,0.10723494,196.69,196.68,105.98776058]
[1760338235224,0.10723494,196.69,196.68,96.36087626]
[1760338235409,0.10268953,196.7,196.68,26.10776058]
[1760338235616,0.10268953,196.7,196.69,21.02335953]
[1760338236313,0.10268953,196.7,196.69,15.96061776]
[1760338236519,0.10268953,196.7,196.69,25.58750208]
[1760338239437,0.10268953,196.7,196.69,10.87647521]
[1760338239726,0.10268953,196.7,196.69,9.62688432]
[1760338239915,0.79268953,196.7,196.68,14.71125748]
[1760338240229,0.10268953,196.7,196.68,25.58773269]
[1760338240410,0.79268953,196.7,196.69,9.62688432]
[1760338240611,0.10268953,196.7,196.69,9.62688432]
[1760338241327,0.10268953,196.7,196.69,14.71102687]
[1760338242226,0.10268953,196.7,196.69,25.58750208]
[1760338242515,0.79268953,196.7,196.69,14.71102687]
[1760338242822,0.79268953,196.7,196.69,5.08414255]
[1760338243408,0.10268953,196.7,196.69,11.54354588]
[1760338243616,0.10268953,196.7,196.69,22.42002109]
[1760338244431,0.10268953,196.7,196.69,22.94002109]
[1760338246628,0.10268953,196.7,196.69,15.96061776]
[1760338246836,0.10268953,196.7,196.69,22.42002109]
[1760338247636,0.77268953,196.7,196.69,22.42002109]
[1760338248536,0.10268953,196.7,196.69,22.42002109]
[1760338249646,0.10268953,196.7,196.69,22.94002109]
[1760338250014,0.10620164,196.71,196.69,22.94002109]
[1760338250242,0.09557694,196.72,196.71,31.67647521]
[1760338250418,1e-08,196.74,196.73,15.95958403]
[1760338250616,1e-08,196.74,196.73,22.41898736]
[1760338250921,1e-08,196.74,196.73,22.93898736]
[1760338251316,0.10510716,196.74,196.73,22.93898736]
[1760338252137,0.10510715,196.74,196.73,22.93898736]
[1760338252336,1e-08,196.75,196.74,31.67647521]
[1760338252638,0.21047453,196.77,196.74,22.938729]